[Event "SRB-chT Men 1st League 2019"]
[Site "Subotica"]
[Date "2019.08.29"]
[Round "8.14"]
[White "Nenezic, Marko"]
[Black "Ivic, Velimir"]
[Result "1-0"]
[ECO "D85"]
[WhiteElo "2522"]
[BlackElo "2511"]
[Annotator "ChessBase"]
[PlyCount "67"]
[EventDate "2019.08.23"]
[EventType "team-tourn"]
[EventCountry "SRB"]
[SourceTitle "playchess.com"]
[Source "ChessBase"]
[SourceQuality "1"]
[TimeControl "40/5400+30:1800+30"]

1. d4 {[%emt 0:04:29]} Nf6 {[%emt 0:00:00]} 2. c4 {[%emt 0:00:07]} g6 {[%emt 0:00:00]} 3. Nc3 {[%emt 0:00:05]} d5 {[%emt 0:00:11]} 4. Nf3 {[%emt 0:00:16]} Bg7 {[%emt 0:00:09]} 5. cxd5 {[%emt 0:00:13]} Nxd5 {[%emt 0:00:05]} 6. e4 {[%emt 0:00:15]} Nxc3 {[%emt 0:00:06]} 7. bxc3 {[%emt 0:00:07]} c5 {[%emt 0:00:16]} 8. Be3 {[%emt 0:00:30]} Qa5 {[%emt 0:00:12]} 9. Qd2 {[%emt 0:00:12]} O-O {[%emt 0:00:43]} 10. Rc1 {[%emt 0:00:26]} Bg4 {[%emt 0:02:10]} 11. Be2 {[%emt 0:08:13]} Nd7 {[%emt 0:00:36]} 12. d5 {[%emt 0:04:04]} b5 {[%emt 0:04:02]} 13. O-O {[%emt 0:05:57]} a6 {[%emt 0:00:33]} 14. h3 {[%emt 0:02:10]} Bxf3 {[%emt 0:00:10]} 15. Bxf3 {[%emt 0:00:06]} c4 {[%emt 0:00:39]} 16. Rfd1 {[%emt 0:03:31]} Qa3 {[%emt 0:04:41]} 17. Bg5 {[%emt 0:15:57]} Rfe8 {[%emt 0:39:52]} 18. d6 {[%emt 0:14:26]} Ne5 {[%emt 0:29:14]} 19. Bxe7 {[%emt 0:25:27]} Nd3 {[%emt 0:00:39]} 20. e5 {[%emt 0:02:26]} Rab8 {[%emt 0:03:18]} 21. e6 {[%emt 0:02:12]} fxe6 {[%emt 0:01:41]} 22. Bc6 {[%emt 0:01:01]} Rxe7 {[%emt 0:05:32]} 23. dxe7 {[%emt 0:00:06]} Qxe7 {[%emt 0:00:12]} 24. Rc2 {[%emt 0:00:21]} Rf8 {[%emt 0:02:30]} 25. Qe3 {[%emt 0:01:26]} Be5 {[%emt 0:02:29]} 26. Be4 {[%emt 0:01:12]} Bf4 {[%emt 0:01:15]} 27. Qe2 {[%emt 0:00:43]} Nc5 {[%emt 0:00:47]} 28. g3 {[%emt 0:00:59]} Bc7 {[%emt 0:00:24]} 29. Kg2 {[%emt 0:02:20]} Bb6 {[%emt 0:01:07]} 30. Qg4 {[%emt 0:00:47]} Qf6 {[%emt 0:00:50]} 31. Rd6 {[%emt 0:00:49]} Bc7 {[%emt 0:00:34]} 32. Rc6 {[%emt 0:00:25]} Qe7 {[%emt 0:00:27]} 33. Bxg6 {[%emt 0:00:42]} Bd6 {[%emt 0:00:32]} 34. Bh5+ {[%emt 0:00:53]} 1-0

[Event "SRB-chT Men 1st League 2019"]
[Site "Subotica"]
[Date "2019.08.29"]
[Round "8.16"]
[White "Vuckovic, Bojan"]
[Black "Stojanovic, Mihajlo"]
[Result "1/2-1/2"]
[ECO "C10"]
[WhiteElo "2581"]
[BlackElo "2475"]
[Annotator "ChessBase"]
[PlyCount "25"]
[EventDate "2019.08.23"]
[EventType "team-tourn"]
[EventCountry "SRB"]
[SourceTitle "playchess.com"]
[Source "ChessBase"]
[SourceQuality "1"]
[TimeControl "40/5400+30:1800+30"]

1. e4 {[%emt 0:00:00]} e6 {[%emt 0:00:29]} 2. d4 {[%emt 0:00:00]} d5 {[%emt 0:00:09]} 3. Nc3 {[%emt 0:00:03]} Nf6 {[%emt 0:00:09]} 4. Bg5 {[%emt 0:00:09]} dxe4 {[%emt 0:00:08]} 5. Nxe4 {[%emt 0:00:06]} Nbd7 {[%emt 0:00:06]} 6. Nf3 {[%emt 0:01:25]} h6 {[%emt 0:00:10]} 7. Nxf6+ {[%emt 0:00:39]} Nxf6 {[%emt 0:00:08]} 8. Be3 {[%emt 0:00:10]} Bd6 {[%emt 0:00:24]} 9. Bd3 {[%emt 0:03:46]} O-O {[%emt 0:00:13]} 10. Qe2 {[%emt 0:02:09]} b6 {[%emt 0:00:08]} 11. Rg1 {[%emt 0:09:41]} Bb7 {[%emt 0:01:31]} 12. O-O-O {[%emt 0:08:29]} Nd5 {[%emt 0:07:29]} 13. Kb1 {[%emt 0:03:57]} 1/2-1/2

[Event "SRB-chT Men 1st League 2019"]
[Site "Subotica"]
[Date "2019.08.29"]
[Round "8.17"]
[White "Vucinic, Gojko"]
[Black "Roganovic, Milos"]
[Result "0-1"]
[ECO "C84"]
[WhiteElo "2396"]
[BlackElo "2505"]
[Annotator "ChessBase"]
[PlyCount "94"]
[EventDate "2019.08.23"]
[EventType "team-tourn"]
[EventCountry "SRB"]
[SourceTitle "playchess.com"]
[Source "ChessBase"]
[SourceQuality "1"]
[TimeControl "40/5400+30:1800+30"]

1. e4 {[%emt 0:00:16]} e5 {[%emt 0:00:00]} 2. Nf3 {[%emt 0:00:04]} Nc6 {[%emt 0:00:00]} 3. Bb5 {[%emt 0:00:13]} a6 {[%emt 0:00:55]} 4. Ba4 {[%emt 0:00:05]} Nf6 {[%emt 0:00:22]} 5. O-O {[%emt 0:00:18]} Be7 {[%emt 0:00:15]} 6. d3 {[%emt 0:01:01]} b5 {[%emt 0:02:07]} 7. Bb3 {[%emt 0:00:03]} O-O {[%emt 0:02:00]} 8. a3 {[%emt 0:00:56]} d5 {[%emt 0:03:52]} 9. exd5 {[%emt 0:09:40]} Nxd5 {[%emt 0:03:13]} 10. Re1 {[%emt 0:00:03]} Bg4 {[%emt 0:04:26]} 11. h3 {[%emt 0:05:26]} Bh5 {[%emt 0:00:24]} 12. g4 {[%emt 0:04:51]} Bg6 {[%emt 0:00:15]} 13. Nxe5 {[%emt 0:00:38]} Nxe5 {[%emt 0:00:13]} 14. Rxe5 {[%emt 0:00:10]} c6 {[%emt 0:00:59]} 15. Nc3 {[%emt 0:09:48]} Bf6 {[%emt 0:05:18]} 16. Rxd5 {[%emt 0:00:12]} cxd5 {[%emt 0:00:08]} 17. Nxd5 {[%emt 0:00:20]} Kh8 {[%emt 0:00:45]} 18. Be3 {[%emt 0:06:52]} Bxb2 {[%emt 0:04:17]} 19. Ra2 {[%emt 0:00:10]} Bf6 {[%emt 0:00:34]} 20. f4 {[%emt 0:00:03]} h6 {[%emt 0:02:43]} 21. Qf3 {[%emt 0:11:12]} Bh7 {[%emt 0:06:08]} 22. a4 {[%emt 0:04:37]} b4 {[%emt 0:02:06]} 23. Bc5 {[%emt 0:04:46]} Re8 {[%emt 0:00:57]} 24. Bxb4 {[%emt 0:07:47]} Bd4+ {[%emt 0:06:08]} 25. Kg2 {[%emt 0:02:33]} Rb8 {[%emt 0:00:57]} 26. c3 {[%emt 0:12:41]} Bxc3 {[%emt 0:04:33]} 27. Nxc3 {[%emt 0:01:07]} Rxb4 {[%emt 0:00:17]} 28. Bxf7 {[%emt 0:00:06]} Rf8 {[%emt 0:05:00]} 29. Bc4 {[%emt 0:01:48]} Bg8 {[%emt 0:01:01]} 30. Nd5 {[%emt 0:04:53]} Bxd5 {[%emt 0:01:46]} 31. Qxd5 {[%emt 0:00:04]} Qxd5+ {[%emt 0:00:49]} 32. Bxd5 {[%emt 0:00:02]} Rfxf4 {[%emt 0:01:47]} 33. Bc4 {[%emt 0:00:52]} a5 {[%emt 0:00:52]} 34. Bb5 {[%emt 0:01:56]} g6 {[%emt 0:05:21]} 35. Rc2 {[%emt 0:02:14]} Kg7 {[%emt 0:01:53]} 36. Be8 {[%emt 0:00:15]} Rb7 {[%emt 0:01:11]} 37. Bb5 {[%emt 0:05:04]} Re7 {[%emt 0:00:43]} 38. Rb2 {[%emt 0:00:38]} Kf6 {[%emt 0:00:43]} 39. Bc6 {[%emt 0:00:32]} Rd4 {[%emt 0:03:27]} 40. Bb5 {[%emt 0:00:00]} Kg5 {[%emt 0:00:00]} 41. Rc2 {[%emt 0:04:17]} Rf4 {[%emt 0:09:41]} 42. Rd2 {[%emt 0:05:44]} Re3 {[%emt 0:03:30]} 43. d4 {[%emt 0:00:07]} Kh4 {[%emt 0:00:27]} 44. d5 {[%emt 0:00:07]} Rg3+ {[%emt 0:00:10]} 45. Kh2 {[%emt 0:00:03]} Rxh3+ {[%emt 0:00:03]} 46. Kg2 {[%emt 0:00:02]} Rxg4+ {[%emt 0:00:13]} 47. Kf1 {[%emt 0:00:03]} Rh1+ {[%emt 0:00:04]} 0-1

[Event "SRB-chT Men 1st League 2019"]
[Site "Subotica"]
[Date "2019.08.29"]
[Round "8.18"]
[White "Bogosavljevic, Boban"]
[Black "Damjanovic, Vuk"]
[Result "1-0"]
[ECO "A11"]
[WhiteElo "2516"]
[BlackElo "2246"]
[Annotator "ChessBase"]
[PlyCount "81"]
[EventDate "2019.08.23"]
[EventType "team-tourn"]
[EventCountry "SRB"]
[SourceTitle "playchess.com"]
[Source "ChessBase"]
[SourceQuality "1"]
[TimeControl "40/5400+30:1800+30"]

1. Nf3 {[%emt 0:00:46]} d5 {[%emt 0:00:00]} 2. g3 {[%emt 0:00:20]} c6 {[%emt 0:00:03]} 3. Bg2 {[%emt 0:00:15]} Bg4 {[%emt 0:00:20]} 4. c4 {[%emt 0:01:44]} e6 {[%emt 0:01:38]} 5. O-O {[%emt 0:00:49]} Nf6 {[%emt 0:01:18]} 6. h3 {[%emt 0:06:50]} Bxf3 {[%emt 0:01:26]} 7. Bxf3 {[%emt 0:00:08]} Be7 {[%emt 0:02:23]} 8. Qc2 {[%emt 0:00:15]} O-O {[%emt 0:00:39]} 9. Bg2 {[%emt 0:00:32]} Nbd7 {[%emt 0:02:24]} 10. d3 {[%emt 0:02:51]} a5 {[%emt 0:04:26]} 11. Nc3 {[%emt 0:01:36]} d4 {[%emt 0:00:59]} 12. Nb1 {[%emt 0:02:23]} a4 {[%emt 0:06:59]} 13. Nd2 {[%emt 0:00:36]} Nc5 {[%emt 0:09:47]} 14. Nf3 {[%emt 0:01:28]} Re8 {[%emt 0:04:41]} 15. Bd2 {[%emt 0:03:22]} Bf8 {[%emt 0:06:23]} 16. b4 {[%emt 0:08:35]} axb3 {[%emt 0:00:52]} 17. axb3 {[%emt 0:00:06]} Na6 {[%emt 0:10:18]} 18. Qb2 {[%emt 0:02:17]} e5 {[%emt 0:00:51]} 19. b4 {[%emt 0:03:59]} Qd6 {[%emt 0:04:42]} 20. Rfb1 {[%emt 0:04:57]} Nc7 {[%emt 0:06:02]} 21. Ra5 {[%emt 0:10:39]} Rxa5 {[%emt 0:07:38]} 22. bxa5 {[%emt 0:01:53]} Na6 {[%emt 0:00:07]} 23. Ng5 {[%emt 0:01:34]} Nd7 {[%emt 0:09:29]} 24. Ne4 {[%emt 0:07:32]} Qc7 {[%emt 0:00:42]} 25. Kh2 {[%emt 0:01:06]} Rb8 {[%emt 0:02:53]} 26. f4 {[%emt 0:09:26]} f6 {[%emt 0:00:22]} 27. fxe5 {[%emt 0:01:06]} fxe5 {[%emt 0:00:05]} 28. c5 {[%emt 0:12:05]} Naxc5 {[%emt 0:02:26]} 29. Qa2+ {[%emt 0:00:25]} Kh8 {[%emt 0:00:04]} 30. Ng5 {[%emt 0:00:19]} h6 {[%emt 0:00:12]} 31. Nf7+ {[%emt 0:01:15]} Kh7 {[%emt 0:00:05]} 32. Rf1 {[%emt 0:02:28]} g6 {[%emt 0:02:17]} 33. Bb4 {[%emt 0:03:37]} Bg7 {[%emt 0:04:26]} 34. h4 {[%emt 0:00:43]} b6 {[%emt 0:01:27]} 35. h5 {[%emt 0:00:30]} bxa5 {[%emt 0:02:51]} 36. hxg6+ {[%emt 0:00:55]} Kxg6 {[%emt 0:00:04]} 37. Bxc5 {[%emt 0:06:30]} Nxc5 {[%emt 0:00:11]} 38. Qc4 {[%emt 0:00:39]} Qe7 {[%emt 0:02:00]} 39. Qxc5 {[%emt 0:00:18]} Qxc5 {[%emt 0:00:27]} 40. Be4+ {[%emt 0:00:00]} Kh5 {[%emt 0:00:00]} 41. Kh3 {[%emt 0:00:12]} 1-0

[Event "SRB-chT Men 1st League 2019"]
[Site "Subotica"]
[Date "2019.08.30"]
[Round "9.2"]
[White "Ivic, Velimir"]
[Black "Perunovic, Milos"]
[Result "0-1"]
[ECO "B49"]
[WhiteElo "2511"]
[BlackElo "2569"]
[Annotator "ChessBase"]
[PlyCount "54"]
[EventDate "2019.08.23"]
[EventType "team-tourn"]
[EventCountry "SRB"]
[SourceTitle "playchess.com"]
[Source "ChessBase"]
[SourceQuality "1"]
[TimeControl "40/5400+30:1800+30"]

1. e4 {[%emt 0:00:00]} c5 {[%emt 0:00:00]} 2. Nf3 {[%emt 0:00:00]} e6 {[%emt 0:00:28]} 3. d4 {[%emt 0:00:00]} cxd4 {[%emt 0:00:08]} 4. Nxd4 {[%emt 0:00:00]} Nc6 {[%emt 0:00:21]} 5. Nc3 {[%emt 0:00:18]} Qc7 {[%emt 0:00:25]} 6. Be3 {[%emt 0:01:00]} a6 {[%emt 0:00:20]} 7. Be2 {[%emt 0:00:37]} b5 {[%emt 0:00:42]} 8. Nxc6 {[%emt 0:00:34]} Qxc6 {[%emt 0:00:08]} 9. Qd4 {[%emt 0:00:08]} Bb7 {[%emt 0:09:04]} 10. f3 {[%emt 0:00:24]} Rc8 {[%emt 0:09:43]} 11. a4 {[%emt 0:01:21]} b4 {[%emt 0:02:50]} 12. Nd1 {[%emt 0:00:07]} Qc7 {[%emt 0:16:47]} 13. a5 {[%emt 0:07:40]} Nf6 {[%emt 0:06:14]} 14. c3 {[%emt 0:30:24]} d5 {[%emt 0:21:40]} 15. e5 {[%emt 0:38:39]} Nd7 {[%emt 0:00:34]} 16. f4 {[%emt 0:03:56]} Nc5 {[%emt 0:08:41]} 17. Ra2 {[%emt 0:01:09]} bxc3 {[%emt 0:11:38]} 18. Nxc3 {[%emt 0:01:38]} Be7 {[%emt 0:00:48]} 19. f5 {[%emt 0:06:18]} Qd7 {[%emt 0:03:03]} 20. Qg4 {[%emt 0:01:37]} exf5 {[%emt 0:01:10]} 21. Qxg7 {[%emt 0:00:37]} Rf8 {[%emt 0:00:03]} 22. Ra1 {[%emt 0:02:17]} d4 {[%emt 0:01:18]} 23. Rd1 {[%emt 0:00:21]} Ne6 {[%emt 0:00:11]} 24. Qxh7 {[%emt 0:01:04]} Qc7 {[%emt 0:01:04]} 25. Bxd4 {[%emt 0:00:44]} Nxd4 {[%emt 0:00:05]} 26. Rxd4 {[%emt 0:00:03]} Qxe5 {[%emt 0:00:08]} 27. Rd2 {[%emt 0:01:55]} Rh8 {[%emt 0:00:20]} 0-1

[Event "SRB-chT Men 1st League 2019"]
[Site "Subotica"]
[Date "2019.08.30"]
[Round "9.4"]
[White "Stojanovic, Mihajlo"]
[Black "Tadic, Branko"]
[Result "1/2-1/2"]
[ECO "D06"]
[WhiteElo "2475"]
[BlackElo "2488"]
[Annotator "ChessBase"]
[PlyCount "44"]
[EventDate "2019.08.23"]
[EventType "team-tourn"]
[EventCountry "SRB"]
[SourceTitle "playchess.com"]
[Source "ChessBase"]
[SourceQuality "1"]
[TimeControl "40/5400+30:1800+30"]

1. Nf3 {[%emt 0:00:00]} d5 {[%emt 0:08:47]} 2. d4 {[%emt 0:00:00]} Bf5 {[%emt 0:02:57]} 3. c4 {[%emt 0:00:00]} e6 {[%emt 0:00:08]} 4. Nc3 {[%emt 0:00:50]} Nc6 {[%emt 0:00:50]} 5. Bg5 {[%emt 0:04:39]} Be7 {[%emt 0:02:48]} 6. Bxe7 {[%emt 0:00:24]} Ngxe7 {[%emt 0:00:05]} 7. e3 {[%emt 0:00:29]} O-O {[%emt 0:02:25]} 8. Rc1 {[%emt 0:04:23]} a6 {[%emt 0:09:26]} 9. Bd3 {[%emt 0:06:32]} Bxd3 {[%emt 0:11:28]} 10. Qxd3 {[%emt 0:00:08]} Nb4 {[%emt 0:00:30]} 11. Qe2 {[%emt 0:00:12]} dxc4 {[%emt 0:04:31]} 12. Qxc4 {[%emt 0:00:28]} c5 {[%emt 0:00:12]} 13. Rd1 {[%emt 0:09:14]} Rc8 {[%emt 0:17:10]} 14. dxc5 {[%emt 0:02:16]} Qa5 {[%emt 0:00:10]} 15. O-O {[%emt 0:08:11]} Rxc5 {[%emt 0:02:43]} 16. Qh4 {[%emt 0:34:43]} Rc7 {[%emt 0:01:22]} 17. e4 {[%emt 0:10:48]} Nbc6 {[%emt 0:06:16]} 18. Rd2 {[%emt 0:01:01]} Rcc8 {[%emt 0:02:47]} 19. Rfd1 {[%emt 0:00:24]} Rcd8 {[%emt 0:06:17]} 20. Qf4 {[%emt 0:03:32]} Ng6 {[%emt 0:01:10]} 21. Qe3 {[%emt 0:00:07]} Rxd2 {[%emt 0:00:58]} 22. Rxd2 {[%emt 0:00:04]} Rd8 {[%emt 0:00:30]} 1/2-1/2

[Event "SRB-chT Men 1st League 2019"]
[Site "Subotica"]
[Date "2019.08.30"]
[Round "9.5"]
[White "Nestorovic, Nikola"]
[Black "Vucinic, Gojko"]
[Result "1/2-1/2"]
[ECO "B72"]
[WhiteElo "2468"]
[BlackElo "2396"]
[Annotator "ChessBase"]
[PlyCount "106"]
[EventDate "2019.08.23"]
[EventType "team-tourn"]
[EventCountry "SRB"]
[SourceTitle "playchess.com"]
[Source "ChessBase"]
[SourceQuality "1"]
[TimeControl "40/5400+30:1800+30"]

1. e4 {[%emt 1:30:30]} c5 {[%emt 1:30:30]} 2. Nf3 {[%emt 0:00:30]} d6 {[%emt 0:00:30]} 3. d4 {[%emt 0:00:30]} cxd4 {[%emt 0:00:30]} 4. Nxd4 {[%emt 0:00:30]} Nf6 5. Nc3 {[%emt 0:00:30]} g6 {[%emt 0:01:00]} 6. Be2 {[%emt 0:00:30]} Bg7 {[%emt 0:00:30]} 7. Be3 {[%emt 0:00:30]} Nc6 {[%emt 0:00:30]} 8. Qd2 {[%emt 0:00:30]} Ng4 {[%emt 0:00:30]} 9. Bxg4 {[%emt 0:00:30]} Bxg4 {[%emt 0:00:30]} 10. f3 {[%emt 0:00:30]} Bd7 {[%emt 0:00:30]} 11. O-O-O {[%emt 0:00:30]} Ne5 {[%emt 0:00:30]} 12. b3 {[%emt 0:00:30]} Qa5 {[%emt 0:00:30]} 13. Kb1 {[%emt 0:00:30]} Rc8 {[%emt 0:00:30]} 14. Nce2 {[%emt 0:00:30]} Qxd2 {[%emt 0:00:30]} 15. Rxd2 {[%emt 0:00:30]} a6 {[%emt 0:00:30]} 16. Nf4 {[%emt 0:00:30]} b5 {[%emt 0:00:30]} 17. Nd5 {[%emt 0:00:30]} e6 {[%emt 0:00:30]} 18. Nb6 {[%emt 0:00:30]} Rc3 {[%emt 0:00:30]} 19. Bf2 {[%emt 0:00:30]} Ke7 {[%emt 0:00:30]} 20. f4 {[%emt 0:00:30]} Ng4 {[%emt 0:00:30]} 21. Bh4+ {[%emt 0:00:30]} Bf6 {[%emt 0:00:30]} 22. Be1 {[%emt 0:00:30]} Bc6 {[%emt 0:00:30]} 23. Rd3 {[%emt 0:00:30]} Rxc2 {[%emt 0:00:30]} 24. e5 {[%emt 0:00:30]} Rc5 {[%emt 0:00:30]} 25. exf6+ {[%emt 0:00:30]} Nxf6 {[%emt 0:00:30]} 26. Nxc6+ {[%emt 0:00:30]} Rxc6 {[%emt 0:00:30]} 27. Ba5 {[%emt 0:00:30]} Rb8 {[%emt 0:00:30]} 28. Rc1 {[%emt 0:00:30]} Rbxb6 {[%emt 0:00:30]} 29. Bxb6 {[%emt 0:00:30]} Rxb6 {[%emt 0:00:30]} 30. Rc7+ {[%emt 0:00:30]} Kf8 {[%emt 0:00:30]} 31. Rdc3 {[%emt 0:00:30]} b4 {[%emt 0:00:30]} 32. R3c6 {[%emt 0:00:30]} Rb5 {[%emt 0:00:30]} 33. Rxd6 {[%emt 0:00:30]} Nd5 {[%emt 0:00:30]} 34. Ra7 {[%emt 0:00:30]} Nxf4 {[%emt 0:00:30]} 35. g4 {[%emt 0:00:30]} Kg7 {[%emt 0:00:30]} 36. Rdd7 {[%emt 0:00:30]} Kf6 {[%emt 0:00:30]} 37. h4 {[%emt 0:00:30]} h5 {[%emt 0:00:30]} 38. Rxf7+ {[%emt 0:00:30]} Ke5 {[%emt 0:00:30]} 39. gxh5 {[%emt 0:00:30]} gxh5 {[%emt 0:00:30]} 40. Rxa6 {[%emt 0:00:30]} Rc5 {[%emt 0:00:30]} 41. Raa7 {[%emt 0:30:30]} Rc3 {[%emt 0:30:30]} 42. Rab7 {[%emt 0:00:30]} Nd5 {[%emt 0:00:30]} 43. Rh7 {[%emt 0:00:30]} Rh3 {[%emt 0:00:30]} 44. Rxh5+ {[%emt 0:00:30]} Kd4 {[%emt 0:00:30]} 45. Rg5 {[%emt 0:00:30]} Nc3+ {[%emt 0:00:30]} 46. Kc1 {[%emt 0:00:30]} Nxa2+ {[%emt 0:00:30]} 47. Kd2 {[%emt 0:00:30]} Rh2+ {[%emt 0:00:30]} 48. Ke1 Rxh4 {[%emt 0:00:30]} 49. Rg3 {[%emt 0:01:00]} Rh1+ {[%emt 0:00:30]} 50. Kd2 {[%emt 0:00:30]} Rh2+ {[%emt 0:00:30]} 51. Ke1 {[%emt 0:00:30]} Rh1+ {[%emt 0:00:30]} 52. Kd2 {[%emt 0:00:30]} Rh2+ {[%emt 0:00:30]} 53. Ke1 Rh1+ {[%emt 0:00:30]} 1/2-1/2

[Event "SRB-chT Men 1st League 2019"]
[Site "Subotica"]
[Date "2019.08.30"]
[Round "9.6"]
[White "Damjanovic, Vuk"]
[Black "Nestorovic, Lazar"]
[Result "0-1"]
[ECO "B08"]
[WhiteElo "2246"]
[BlackElo "2374"]
[Annotator "NA"]
[PlyCount "80"]
[EventDate "2019.08.23"]
[EventType "team-tourn"]
[EventCountry "SRB"]
[SourceTitle "playchess.com"]
[Source "ChessBase"]
[SourceQuality "1"]
[TimeControl "40/5400+30:1800+30"]

1. e4 {[%emt 0:00:00]} Nc6 {[%emt 0:00:00]} 2. Nf3 {[%emt 0:03:27]} d6 {[%emt 0:00:00]} 3. d4 {[%emt 0:00:34]} g6 {[%emt 0:00:38]} 4. Nc3 {[%emt 0:07:15]} Bg7 {[%emt 0:00:22]} 5. Be2 {[%emt 0:00:54]} Bg4 {[%emt 0:01:46]} 6. Be3 {[%emt 0:00:32]} Nf6 {[%emt 0:04:04]} 7. d5 {[%emt 0:01:24]} Bxf3 {[%emt 0:00:59]} 8. Bxf3 {[%emt 0:03:19]} Ne5 {[%emt 0:00:06]} 9. Be2 {[%emt 0:00:28]} O-O {[%emt 0:00:13]} 10. O-O {[%emt 0:04:12]} c6 {[%emt 0:00:48]} 11. f4 {[%emt 0:00:46]} Ned7 {[%emt 0:00:11]} 12. Bf3 {[%emt 0:03:15]} Qc7 {[%emt 0:02:50]} 13. Qe2 {[%emt 0:04:55]} Nb6 {[%emt 0:04:59]} 14. Rae1 {[%emt 0:10:41]} Nfd7 {[%emt 0:01:34]} 15. Nd1 {[%emt 0:12:50]} a5 {[%emt 0:09:35]} 16. Bf2 {[%emt 0:14:07]} a4 {[%emt 0:01:33]} 17. c3 {[%emt 0:00:10]} Ra5 {[%emt 0:01:03]} 18. Ne3 {[%emt 0:01:53]} a3 {[%emt 0:01:38]} 19. b4 {[%emt 0:04:03]} Raa8 {[%emt 0:00:06]} 20. c4 {[%emt 0:03:10]} Ra4 {[%emt 0:02:01]} 21. Qd2 {[%emt 0:02:09]} c5 {[%emt 0:07:41]} 22. bxc5 {[%emt 0:03:35]} Nxc5 {[%emt 0:00:19]} 23. Rc1 {[%emt 0:00:38]} Bb2 {[%emt 0:07:36]} 24. Rc2 {[%emt 0:00:28]} Na6 {[%emt 0:00:32]} 25. f5 {[%emt 0:07:05]} Nxc4 {[%emt 0:07:41]} 26. Nxc4 {[%emt 0:02:07]} Rxc4 {[%emt 0:00:11]} 27. Rxb2 {[%emt 0:00:34]} axb2 {[%emt 0:00:15]} 28. Qxb2 {[%emt 0:00:02]} Rc2 {[%emt 0:02:12]} 29. Qb3 {[%emt 0:00:37]} Rc1 {[%emt 0:07:09]} 30. g3 {[%emt 0:00:52]} Rxf1+ {[%emt 0:01:05]} 31. Kxf1 {[%emt 0:00:00]} Ra8 {[%emt 0:10:25]} 32. fxg6 {[%emt 0:00:22]} hxg6 {[%emt 0:00:18]} 33. Qb5 {[%emt 0:02:05]} Nc5 {[%emt 0:01:01]} 34. Qb1 {[%emt 0:00:49]} Qa5 {[%emt 0:00:46]} 35. e5 {[%emt 0:01:08]} Qxa2 {[%emt 0:01:05]} 36. Qb5 {[%emt 0:00:23]} Qa1+ {[%emt 0:02:02]} 37. Kg2 {[%emt 0:00:09]} Qxe5 {[%emt 0:00:12]} 38. Bxc5 {[%emt 0:00:11]} dxc5 {[%emt 0:00:09]} 39. Qxb7 {[%emt 0:00:02]} Ra2+ {[%emt 0:01:05]} 40. Kh3 {[%emt 0:00:00]} Qf5+ {[%emt 0:00:00]} 0-1

[Event "SRB-chT Men 1st League 2019"]
[Site "Subotica"]
[Date "2019.08.30"]
[Round "9.9"]
[White "Radovanovic, Mihajlo"]
[Black "Popovic, Dusan"]
[Result "1/2-1/2"]
[ECO "E62"]
[WhiteElo "2496"]
[BlackElo "2481"]
[Annotator "ChessBase"]
[PlyCount "109"]
[EventDate "2019.08.23"]
[EventType "team-tourn"]
[EventCountry "SRB"]
[SourceTitle "playchess.com"]
[Source "ChessBase"]
[SourceQuality "1"]
[TimeControl "40/5400+30:1800+30"]

1. d4 {[%emt 0:00:00]} Nf6 {[%emt 0:00:00]} 2. c4 {[%emt 0:00:00]} g6 {[%emt 0:00:00]} 3. g3 {[%emt 0:00:00]} Bg7 {[%emt 0:00:00]} 4. Bg2 {[%emt 0:00:00]} O-O {[%emt 0:00:00]} 5. Nf3 {[%emt 0:00:01]} d6 {[%emt 0:00:00]} 6. O-O {[%emt 0:00:08]} Nc6 {[%emt 0:00:00]} 7. Nc3 {[%emt 0:00:12]} Bg4 {[%emt 0:00:16]} 8. d5 {[%emt 0:01:19]} Na5 {[%emt 0:00:04]} 9. b3 {[%emt 0:00:48]} c5 {[%emt 0:03:00]} 10. Bb2 {[%emt 0:00:52]} a6 {[%emt 0:00:35]} 11. Nd2 {[%emt 0:01:21]} Rb8 {[%emt 0:01:02]} 12. Qc2 {[%emt 0:00:27]} b5 {[%emt 0:00:37]} 13. Rae1 {[%emt 0:00:21]} Bd7 {[%emt 0:04:48]} 14. Ba1 {[%emt 0:15:57]} bxc4 {[%emt 0:06:51]} 15. bxc4 {[%emt 0:00:08]} Rb4 {[%emt 0:00:20]} 16. a3 {[%emt 0:08:12]} Rb8 {[%emt 0:00:30]} 17. e4 {[%emt 0:01:09]} e6 {[%emt 0:00:41]} 18. Rb1 {[%emt 0:12:22]} Qc7 {[%emt 0:01:49]} 19. h3 {[%emt 0:12:52]} Nh5 {[%emt 0:12:23]} 20. Kh2 {[%emt 0:04:20]} e5 {[%emt 0:13:46]} 21. Ne2 {[%emt 0:03:48]} f5 {[%emt 0:04:52]} 22. Rxb8 {[%emt 0:00:33]} Rxb8 {[%emt 0:01:11]} 23. Bc3 {[%emt 0:00:31]} Rf8 {[%emt 0:18:50]} 24. f4 {[%emt 0:05:04]} Nb7 {[%emt 0:01:59]} 25. Bf3 {[%emt 0:02:58]} Nf6 {[%emt 0:01:34]} 26. Qb2 {[%emt 0:01:15]} Re8 {[%emt 0:02:50]} 27. Rb1 {[%emt 0:03:39]} Bc8 {[%emt 0:02:55]} 28. fxe5 {[%emt 0:11:24]} dxe5 {[%emt 0:00:06]} 29. Qb6 {[%emt 0:00:05]} Qe7 {[%emt 0:09:42]} 30. Qc6 {[%emt 0:04:37]} fxe4 {[%emt 0:01:37]} 31. Bxe4 {[%emt 0:01:57]} Nd6 {[%emt 0:02:47]} 32. Bg2 {[%emt 0:00:25]} Nf5 {[%emt 0:02:25]} 33. Rb8 {[%emt 0:02:49]} Bd7 {[%emt 0:02:12]} 34. Rxe8+ {[%emt 0:00:06]} Nxe8 {[%emt 0:00:36]} 35. Qxa6 {[%emt 0:00:17]} Nd4 {[%emt 0:00:07]} 36. Ng1 {[%emt 0:01:43]} Nd6 {[%emt 0:04:47]} 37. Ne4 {[%emt 0:01:45]} Nxe4 {[%emt 0:00:53]} 38. Bxe4 {[%emt 0:00:01]} Qf7 {[%emt 0:00:11]} 39. Kg2 {[%emt 0:03:11]} Bf5 {[%emt 0:00:23]} 40. Bxf5 {[%emt 0:00:00]} Qxf5 {[%emt 0:00:00]} 41. Qa8+ {[%emt 0:19:55]} Bf8 {[%emt 0:04:13]} 42. d6 {[%emt 0:02:43]} Qe6 {[%emt 0:06:42]} 43. Nf3 {[%emt 0:00:42]} Qxd6 {[%emt 0:12:19]} 44. Ng5 {[%emt 0:02:34]} h6 {[%emt 0:04:52]} 45. Ne4 {[%emt 0:00:32]} Qe6 {[%emt 0:01:10]} 46. Nd2 {[%emt 0:03:21]} Nc2 {[%emt 0:02:31]} 47. Qe4 {[%emt 0:01:02]} Nxa3 {[%emt 0:01:38]} 48. Bb2 {[%emt 0:00:43]} Qa6 {[%emt 0:03:12]} 49. Qd5+ {[%emt 0:04:18]} Kh7 {[%emt 0:00:29]} 50. Qf3 {[%emt 0:01:37]} Nc2 {[%emt 0:00:40]} 51. Qxf8 {[%emt 0:00:25]} Qb7+ {[%emt 0:00:08]} 52. Kf2 {[%emt 0:00:45]} Qxb2 {[%emt 0:00:09]} 53. Qf7+ {[%emt 0:00:23]} Kh8 {[%emt 0:00:01]} 54. Qf8+ {[%emt 0:00:46]} Kh7 {[%emt 0:00:01]} 55. Qf7+ {[%emt 0:00:19]} 1/2-1/2